[Event "Titled Tuesday Blitz March 08 Early 2022"]
[White "Martinez Alcantara, Jose Eduardo"]
[Black "Jumabayev, Rinat"]
[WhiteFideId "3805662"]
[BlackFideId "13702661"]
[WhiteElo "2690"]
[BlackElo "2561"]
[Result "1-0"]
[Round "07"]
[TimeControl "180+1"]
[Date "2022.03.08"]
[WhiteClock "0:00:05"]
[BlackClock "0:00:03"]

1. e4 {[%clk 0:03:00]}  e5 {[%clk 0:02:59]} 2. Nf3 {[%clk 0:03:01]}  Nc6 {[%clk 0:02:59]} 3. Bb5 {[%clk 0:02:58]}  Nf6 {[%clk 0:02:59]} 4. d3 {[%clk 0:02:57]}  Bc5 {[%clk 0:02:57]} 5. c3 {[%clk 0:02:53]}  O-O {[%clk 0:02:55]} 6. O-O {[%clk 0:02:53]}  d6 {[%clk 0:02:54]} 7. h3 {[%clk 0:02:51]}  a6 {[%clk 0:02:50]} 8. Bxc6 {[%clk 0:02:48]}  bxc6 {[%clk 0:02:51]} 9. Nbd2 {[%clk 0:02:47]}  h6 {[%clk 0:02:45]} 10. Re1 {[%clk 0:02:44]}  Re8 {[%clk 0:02:42]} 11. Nf1 {[%clk 0:02:44]}  a5 {[%clk 0:02:41]} 12. Ng3 {[%clk 0:02:42]}  Bb6 {[%clk 0:02:38]} 13. Qc2 {[%clk 0:02:27]}  a4 {[%clk 0:02:24]} 14. Be3 {[%clk 0:02:22]}  c5 {[%clk 0:02:16]} 15. Rad1 {[%clk 0:02:10]}  Be6 {[%clk 0:02:10]} 16. c4 {[%clk 0:02:06]}  Nd7 {[%clk 0:01:37]} 17. Qc1 {[%clk 0:01:57]}  Kh7 {[%clk 0:01:36]} 18. Rf1 {[%clk 0:01:53]}  c6 {[%clk 0:01:11]} 19. Qc2 {[%clk 0:01:44]}  Kh8 {[%clk 0:01:07]} 20. Qc1 {[%clk 0:01:44]}  Kh7 {[%clk 0:01:07]} 21. Qc2 {[%clk 0:01:44]}  Kh8 {[%clk 0:01:07]} 22. Nh2 {[%clk 0:01:45]}  d5 {[%clk 0:01:00]} 23. f4 {[%clk 0:01:44]}  exf4 {[%clk 0:00:55]} 24. Bxf4 {[%clk 0:01:45]}  Bc7 {[%clk 0:00:53]} 25. Nh5 {[%clk 0:01:34]}  Qh4 {[%clk 0:00:24]} 26. Bxc7 {[%clk 0:00:59]}  Qxh5 {[%clk 0:00:24]} 27. Qc3 {[%clk 0:00:45]}  Qg6 {[%clk 0:00:23]} 28. Kh1 {[%clk 0:00:36]}  dxe4 {[%clk 0:00:23]} 29. dxe4 {[%clk 0:00:36]}  Nf6 {[%clk 0:00:23]} 30. Qc1 {[%clk 0:00:12]}  Nxe4 {[%clk 0:00:22]} 31. Rde1 {[%clk 0:00:08]}  f5 {[%clk 0:00:23]} 32. Bf4 {[%clk 0:00:08]}  Rad8 {[%clk 0:00:20]} 33. Nf3 {[%clk 0:00:08]}  Kh7 {[%clk 0:00:18]} 34. b3 {[%clk 0:00:08]}  axb3 {[%clk 0:00:18]} 35. axb3 {[%clk 0:00:09]}  Bc8 {[%clk 0:00:17]} 36. Kh2 {[%clk 0:00:09]}  Qf6 {[%clk 0:00:16]} 37. Qa1 {[%clk 0:00:07]}  Qxa1 {[%clk 0:00:12]} 38. Rxa1 {[%clk 0:00:08]}  Rd3 {[%clk 0:00:12]} 39. Ra7 {[%clk 0:00:07]}  Kg8 {[%clk 0:00:11]} 40. Be5 {[%clk 0:00:03]}  Rd7 {[%clk 0:00:07]} 41. Rfa1 {[%clk 0:00:03]}  Ng5 {[%clk 0:00:03]} 42. Nxg5 {[%clk 0:00:02]}  Rxe5 {[%clk 0:00:03]} 43. Nf3 {[%clk 0:00:02]}  Re8 {[%clk 0:00:04]} 44. Ra8 {[%clk 0:00:03]}  Rdd8 {[%clk 0:00:04]} 45. R8a5 {[%clk 0:00:03]}  Be6 {[%clk 0:00:04]} 46. Rxc5 {[%clk 0:00:03]}  Rd6 {[%clk 0:00:04]} 47. Ra6 {[%clk 0:00:03]}  Rb8 {[%clk 0:00:04]} 48. Rcxc6 {[%clk 0:00:02]}  Rxc6 {[%clk 0:00:05]} 49. Rxc6 {[%clk 0:00:03]}  Kf7 {[%clk 0:00:05]} 50. Nd4 {[%clk 0:00:03]}  Bd7 {[%clk 0:00:05]} 51. Rc7 {[%clk 0:00:03]}  Ke8 {[%clk 0:00:06]} 52. Ra7 {[%clk 0:00:02]}  Rc8 {[%clk 0:00:06]} 53. Kg3 {[%clk 0:00:02]}  g5 {[%clk 0:00:06]} 54. Kf3 {[%clk 0:00:03]}  Rc5 {[%clk 0:00:05]} 55. Ke3 {[%clk 0:00:03]}  Re5+ {[%clk 0:00:06]} 56. Kd3 {[%clk 0:00:03]}  f4 {[%clk 0:00:06]} 57. c5 {[%clk 0:00:03]}  h5 {[%clk 0:00:05]} 58. b4 {[%clk 0:00:04]}  g4 {[%clk 0:00:05]} 59. hxg4 {[%clk 0:00:04]}  hxg4 {[%clk 0:00:06]} 60. c6 {[%clk 0:00:03]}  Bc8 {[%clk 0:00:06]} 61. b5 {[%clk 0:00:04]}  f3 {[%clk 0:00:05]} 62. gxf3 {[%clk 0:00:04]}  g3 {[%clk 0:00:06]} 63. Ra1 {[%clk 0:00:03]}  g2 {[%clk 0:00:04]} 64. Rg1 {[%clk 0:00:04]}  Bh3 {[%clk 0:00:05]} 65. b6 {[%clk 0:00:04]}  Kd8 {[%clk 0:00:05]} 66. c7+ {[%clk 0:00:03]}  Kd7 {[%clk 0:00:06]} 67. Rc1 {[%clk 0:00:02]}  Kd6 {[%clk 0:00:03]} 68. b7 {[%clk 0:00:02]}  Rc5 {[%clk 0:00:02]} 69. Rxc5 {[%clk 0:00:01]}  g1=Q {[%clk 0:00:02]} 70. Rc6+ {[%clk 0:00:02]}  Kd5 {[%clk 0:00:03]} 71. c8=Q {[%clk 0:00:01]}  Qxd4+ {[%clk 0:00:03]} 72. Kc2 {[%clk 0:00:02]}  Bxc8 {[%clk 0:00:02]} 73. bxc8=Q {[%clk 0:00:03]}  Qf2+ {[%clk 0:00:02]} 74. Kb3 {[%clk 0:00:03]}  Qe3+ {[%clk 0:00:03]} 75. Rc3 {[%clk 0:00:04]}  Qb6+ {[%clk 0:00:03]} 76. Ka2 {[%clk 0:00:04]}  Qa5+ {[%clk 0:00:03]} 77. Kb2 {[%clk 0:00:04]}  Qb6+ {[%clk 0:00:03]} 78. Rb3 {[%clk 0:00:05]}  Qd4+ {[%clk 0:00:03]} 79. Qc3 {[%clk 0:00:05]} 1-0


[Site "https://www.chess.com"]

[Event "Titled Tuesday Blitz March 08 Early 2022"]
[White "Matlakov, Maxim"]
[Black "Tabatabaei, M. Amin"]
[WhiteFideId "4168003"]
[BlackFideId "12521213"]
[WhiteElo "2669"]
[BlackElo "2544"]
[Result "0-1"]
[Round "07"]
[TimeControl "180+1"]
[Date "2022.03.08"]
[WhiteClock "0:00:01"]
[BlackClock "0:01:07"]

1. e4 {[%clk 0:03:00]}  c6 {[%clk 0:02:57]} 2. d4 {[%clk 0:03:00]}  d5 {[%clk 0:02:58]} 3. exd5 {[%clk 0:03:00]}  cxd5 {[%clk 0:02:59]} 4. Bd3 {[%clk 0:03:01]}  Nf6 {[%clk 0:02:59]} 5. Nf3 {[%clk 0:03:00]}  Nc6 {[%clk 0:02:59]} 6. h3 {[%clk 0:02:49]}  g6 {[%clk 0:02:59]} 7. c3 {[%clk 0:02:39]}  Bf5 {[%clk 0:02:59]} 8. Ne5 {[%clk 0:02:38]}  Bxd3 {[%clk 0:02:56]} 9. Nxd3 {[%clk 0:02:38]}  Bg7 {[%clk 0:02:55]} 10. Bf4 {[%clk 0:02:38]}  O-O {[%clk 0:02:56]} 11. O-O {[%clk 0:02:38]}  Ne4 {[%clk 0:02:55]} 12. Nd2 {[%clk 0:02:37]}  Nxd2 {[%clk 0:02:51]} 13. Qxd2 {[%clk 0:02:38]}  e6 {[%clk 0:02:49]} 14. g3 {[%clk 0:02:34]}  Rc8 {[%clk 0:02:49]} 15. h4 {[%clk 0:02:34]}  h5 {[%clk 0:02:48]} 16. Rfe1 {[%clk 0:02:34]}  Na5 {[%clk 0:02:45]} 17. Kg2 {[%clk 0:02:32]}  Nc4 {[%clk 0:02:45]} 18. Qe2 {[%clk 0:02:32]}  Qf6 {[%clk 0:02:41]} 19. Bg5 {[%clk 0:02:20]}  Qf5 {[%clk 0:02:40]} 20. f3 {[%clk 0:02:21]}  f6 {[%clk 0:02:39]} 21. Bc1 {[%clk 0:01:39]}  e5 {[%clk 0:02:38]} 22. b3 {[%clk 0:01:24]}  Nd6 {[%clk 0:02:13]} 23. Ba3 {[%clk 0:01:24]}  Rfd8 {[%clk 0:02:13]} 24. Bxd6 {[%clk 0:01:21]}  Rxd6 {[%clk 0:02:14]} 25. Qd2 {[%clk 0:01:03]}  Kh7 {[%clk 0:02:03]} 26. Rad1 {[%clk 0:00:47]}  Rdc6 {[%clk 0:01:29]} 27. dxe5 {[%clk 0:00:33]}  Rxc3 {[%clk 0:01:28]} 28. Qf4 {[%clk 0:00:12]}  fxe5 {[%clk 0:01:29]} 29. Qxf5 {[%clk 0:00:11]}  gxf5 {[%clk 0:01:29]} 30. Nxe5 {[%clk 0:00:11]}  Rc2+ {[%clk 0:01:30]} 31. Kh3 {[%clk 0:00:11]}  Rxa2 {[%clk 0:01:30]} 32. Rxd5 {[%clk 0:00:08]}  Rcc2 {[%clk 0:01:30]} 33. Rh1 {[%clk 0:00:09]}  Rd2 {[%clk 0:01:20]} 34. Rxd2 {[%clk 0:00:04]}  Rxd2 {[%clk 0:01:21]} 35. Nc4 {[%clk 0:00:04]}  Rd3 {[%clk 0:01:20]} 36. Re1 {[%clk 0:00:04]}  Rxf3 {[%clk 0:01:14]} 37. Re7 {[%clk 0:00:04]}  Rxb3 {[%clk 0:01:13]} 38. Nd6 {[%clk 0:00:03]}  Kg6 {[%clk 0:01:11]} 39. Kg2 {[%clk 0:00:01]}  a5 {[%clk 0:01:10]} 40. Re6+ {[%clk 0:00:01]}  Bf6 {[%clk 0:01:07]} 0-1


[Site "https://www.chess.com"]

[Event "Titled Tuesday Blitz March 08 Early 2022"]
[White "Mirzanurov, Bulat"]
[Black "Krylov, Ivan"]
[WhiteFideId "4184521"]
[BlackFideId "24128066"]
[WhiteElo "2116"]
[BlackElo "2258"]
[Result "1-0"]
[Round "07"]
[TimeControl "180+1"]
[Date "2022.03.09"]
[WhiteClock "0:00:15"]
[BlackClock "0:00:26"]

1. e4 {[%clk 0:03:00]}  c6 {[%clk 0:03:00]} 2. d4 {[%clk 0:02:59]}  d5 {[%clk 0:03:01]} 3. exd5 {[%clk 0:02:58]}  cxd5 {[%clk 0:03:01]} 4. Bd3 {[%clk 0:02:56]}  Nf6 {[%clk 0:03:02]} 5. h3 {[%clk 0:02:55]}  g6 {[%clk 0:02:59]} 6. c3 {[%clk 0:02:53]}  Bg7 {[%clk 0:02:59]} 7. Qc2 {[%clk 0:02:52]}  Nc6 {[%clk 0:02:59]} 8. Nf3 {[%clk 0:02:51]}  O-O {[%clk 0:02:57]} 9. O-O {[%clk 0:02:50]}  Bd7 {[%clk 0:02:56]} 10. Re1 {[%clk 0:02:49]}  Rc8 {[%clk 0:02:56]} 11. a3 {[%clk 0:02:47]}  Na5 {[%clk 0:02:54]} 12. Nbd2 {[%clk 0:02:45]}  Qc7 {[%clk 0:02:51]} 13. Rxe7 {[%clk 0:02:33]}  Rfe8 {[%clk 0:02:49]} 14. Rxe8+ {[%clk 0:02:29]}  Rxe8 {[%clk 0:02:50]} 15. Nf1 {[%clk 0:02:26]}  Nc4 {[%clk 0:02:42]} 16. Ne3 {[%clk 0:02:18]}  Ne4 {[%clk 0:02:33]} 17. Nxc4 {[%clk 0:02:12]}  Nxf2 {[%clk 0:02:21]} 18. Qxf2 {[%clk 0:02:09]}  dxc4 {[%clk 0:02:21]} 19. Bc2 {[%clk 0:02:07]}  Bc6 {[%clk 0:02:17]} 20. Bd2 {[%clk 0:02:02]}  Qa5 {[%clk 0:02:08]} 21. Re1 {[%clk 0:01:59]}  Rd8 {[%clk 0:02:02]} 22. Bf4 {[%clk 0:01:54]}  Qb5 {[%clk 0:02:01]} 23. Be4 {[%clk 0:01:49]}  Bd7 {[%clk 0:01:46]} 24. Ne5 {[%clk 0:01:37]}  Be6 {[%clk 0:01:42]} 25. Bh2 {[%clk 0:01:25]}  Bh6 {[%clk 0:01:35]} 26. Qf6 {[%clk 0:01:20]}  Re8 {[%clk 0:01:26]} 27. Rf1 {[%clk 0:01:04]}  Rf8 {[%clk 0:01:21]} 28. Qf2 {[%clk 0:00:57]}  f5 {[%clk 0:01:10]} 29. Bf3 {[%clk 0:00:47]}  a5 {[%clk 0:01:04]} 30. Re1 {[%clk 0:00:42]}  Bd5 {[%clk 0:00:55]} 31. Bxd5+ {[%clk 0:00:33]}  Qxd5 {[%clk 0:00:56]} 32. Qf3 {[%clk 0:00:32]}  Qb5 {[%clk 0:00:53]} 33. Qe2 {[%clk 0:00:27]}  Re8 {[%clk 0:00:49]} 34. Rf1 {[%clk 0:00:23]}  Rc8 {[%clk 0:00:42]} 35. Qf3 {[%clk 0:00:21]}  Qxb2 {[%clk 0:00:38]} 36. Qd5+ {[%clk 0:00:21]}  Kh8 {[%clk 0:00:33]} 37. Nf7+ {[%clk 0:00:17]}  Kg7 {[%clk 0:00:33]} 38. Nxh6 {[%clk 0:00:16]}  Kxh6 {[%clk 0:00:34]} 39. Bf4+ {[%clk 0:00:16]}  Kh5 {[%clk 0:00:26]} 40. Qf3+ {[%clk 0:00:15]}  Kh4 {[%clk 0:00:26]} 41. Qg3+ {[%clk 0:00:15]}  Kh5 {[%clk 0:00:26]} 42. Qg5# {[%clk 0:00:15]} 1-0


[Site "https://www.chess.com"]

[Event "Titled Tuesday Blitz March 08 Early 2022"]
[White "Mkrtchyan, Mariam"]
[Black "Sanchez Alvares, Kelvin Antonio"]
[WhiteFideId "13310828"]
[BlackFideId "3906680"]
[WhiteElo "1984"]
[BlackElo "2193"]
[Result "0-1"]
[Round "07"]
[TimeControl "180+1"]
[Date "2022.03.09"]
[WhiteClock "0:00:33"]
[BlackClock "0:01:24"]

1. Nf3 {[%clk 0:03:00]}  d5 {[%clk 0:02:58]} 2. g3 {[%clk 0:03:00]}  c5 {[%clk 0:02:57]} 3. Bg2 {[%clk 0:03:00]}  Nc6 {[%clk 0:02:57]} 4. d4 {[%clk 0:02:56]}  Nf6 {[%clk 0:02:56]} 5. O-O {[%clk 0:02:55]}  cxd4 {[%clk 0:02:56]} 6. Nxd4 {[%clk 0:02:55]}  e5 {[%clk 0:02:57]} 7. Nxc6 {[%clk 0:02:55]}  bxc6 {[%clk 0:02:58]} 8. c4 {[%clk 0:02:55]}  Be6 {[%clk 0:02:56]} 9. Nc3 {[%clk 0:02:55]}  Be7 {[%clk 0:02:55]} 10. Bg5 {[%clk 0:02:54]}  Rb8 {[%clk 0:02:43]} 11. Qa4 {[%clk 0:02:46]}  O-O {[%clk 0:02:42]} 12. Qxc6 {[%clk 0:02:31]}  dxc4 {[%clk 0:02:38]} 13. Rad1 {[%clk 0:02:22]}  Qc8 {[%clk 0:02:36]} 14. Rd2 {[%clk 0:02:16]}  Qxc6 {[%clk 0:02:28]} 15. Bxc6 {[%clk 0:02:16]}  Rfc8 {[%clk 0:02:29]} 16. Bg2 {[%clk 0:02:15]}  Bb4 {[%clk 0:02:15]} 17. Rc1 {[%clk 0:02:07]}  Nd7 {[%clk 0:02:09]} 18. a3 {[%clk 0:01:46]}  Bxc3 {[%clk 0:02:08]} 19. Rxc3 {[%clk 0:01:45]}  Nb6 {[%clk 0:02:08]} 20. e4 {[%clk 0:01:28]}  Na4 {[%clk 0:02:05]} 21. Rcc2 {[%clk 0:01:28]}  f6 {[%clk 0:01:57]} 22. Be3 {[%clk 0:01:27]}  Rc7 {[%clk 0:01:54]} 23. Bf1 {[%clk 0:01:16]}  Kf7 {[%clk 0:01:40]} 24. f3 {[%clk 0:01:15]}  Rb3 {[%clk 0:01:37]} 25. Kf2 {[%clk 0:01:13]}  c3 {[%clk 0:01:34]} 26. bxc3 {[%clk 0:01:11]}  Nxc3 {[%clk 0:01:27]} 27. Rb2 {[%clk 0:00:34]}  Rxb2 {[%clk 0:01:24]} 28. Rxb2 {[%clk 0:00:33]}  Nd1+ {[%clk 0:01:24]} 0-1


[Site "https://www.chess.com"]

[Event "Titled Tuesday Blitz March 08 Early 2022"]
[White "Molina, Roberto Junio Brito"]
[Black "Jaferian, Koosha"]
[WhiteFideId "2109450"]
[BlackFideId "12507440"]
[WhiteElo "2432"]
[BlackElo "2030"]
[Result "1-0"]
[Round "07"]
[TimeControl "180+1"]
[Date "2022.03.08"]
[WhiteClock "0:00:05"]
[BlackClock "0:00:05"]

1. d4 {[%clk 0:03:00]}  Nf6 {[%clk 0:02:59]} 2. c4 {[%clk 0:03:00]}  e6 {[%clk 0:03:00]} 3. Nf3 {[%clk 0:03:00]}  b6 {[%clk 0:02:59]} 4. g3 {[%clk 0:02:59]}  Ba6 {[%clk 0:02:59]} 5. b3 {[%clk 0:02:58]}  Bb4+ {[%clk 0:02:59]} 6. Bd2 {[%clk 0:02:58]}  Be7 {[%clk 0:03:00]} 7. Bg2 {[%clk 0:02:58]}  O-O {[%clk 0:02:59]} 8. O-O {[%clk 0:02:58]}  c6 {[%clk 0:03:00]} 9. Qc2 {[%clk 0:02:58]}  d5 {[%clk 0:03:00]} 10. Nc3 {[%clk 0:02:57]}  Nbd7 {[%clk 0:02:58]} 11. Rfd1 {[%clk 0:02:57]}  Rc8 {[%clk 0:02:58]} 12. Bf4 {[%clk 0:02:57]}  Nh5 {[%clk 0:02:47]} 13. Be3 {[%clk 0:02:51]}  f5 {[%clk 0:02:47]} 14. Ne5 {[%clk 0:02:29]}  Nhf6 {[%clk 0:02:34]} 15. Bg5 {[%clk 0:02:24]}  Ne4 {[%clk 0:02:28]} 16. Bxe7 {[%clk 0:02:23]}  Qxe7 {[%clk 0:02:28]} 17. Nxe4 {[%clk 0:02:23]}  fxe4 {[%clk 0:02:26]} 18. Nxd7 {[%clk 0:02:22]}  Qxd7 {[%clk 0:02:27]} 19. Rac1 {[%clk 0:02:15]}  Rf6 {[%clk 0:02:15]} 20. f4 {[%clk 0:02:12]}  Bb7 {[%clk 0:01:59]} 21. e3 {[%clk 0:02:09]}  Qe7 {[%clk 0:01:56]} 22. c5 {[%clk 0:02:06]}  Rff8 {[%clk 0:01:48]} 23. b4 {[%clk 0:02:05]}  Ra8 {[%clk 0:01:41]} 24. a4 {[%clk 0:02:05]}  bxc5 {[%clk 0:01:17]} 25. Qxc5 {[%clk 0:02:03]}  Qxc5 {[%clk 0:01:17]} 26. Rxc5 {[%clk 0:01:35]}  Rfc8 {[%clk 0:01:12]} 27. Rdc1 {[%clk 0:01:34]}  Kf7 {[%clk 0:01:12]} 28. Kf2 {[%clk 0:01:27]}  Ke7 {[%clk 0:01:12]} 29. Ke1 {[%clk 0:01:28]}  Kd6 {[%clk 0:01:12]} 30. Kd2 {[%clk 0:01:28]}  a6 {[%clk 0:01:01]} 31. Kc3 {[%clk 0:01:20]}  Rc7 {[%clk 0:01:01]} 32. Rf1 {[%clk 0:01:17]}  Bc8 {[%clk 0:01:00]} 33. g4 {[%clk 0:01:17]}  Bd7 {[%clk 0:00:59]} 34. g5 {[%clk 0:01:16]}  h5 {[%clk 0:00:49]} 35. h4 {[%clk 0:01:14]}  g6 {[%clk 0:00:49]} 36. Rf2 {[%clk 0:01:13]}  Rf8 {[%clk 0:00:48]} 37. Rb2 {[%clk 0:01:11]}  Rf7 {[%clk 0:00:48]} 38. Bf1 {[%clk 0:01:09]}  Bc8 {[%clk 0:00:48]} 39. Ra5 {[%clk 0:01:08]}  Ra7 {[%clk 0:00:45]} 40. Kb3 {[%clk 0:01:05]}  Rfc7 {[%clk 0:00:41]} 41. Rc2 {[%clk 0:01:05]}  Kd7 {[%clk 0:00:39]} 42. Be2 {[%clk 0:01:04]}  Kd6 {[%clk 0:00:39]} 43. Ka3 {[%clk 0:01:04]}  Kd7 {[%clk 0:00:37]} 44. Rcc5 {[%clk 0:01:02]}  Kd6 {[%clk 0:00:37]} 45. Kb3 {[%clk 0:00:50]}  Kd7 {[%clk 0:00:38]} 46. Kc3 {[%clk 0:00:50]}  Kd6 {[%clk 0:00:38]} 47. Kb3 {[%clk 0:00:40]}  Kd7 {[%clk 0:00:39]} 48. Bf1 {[%clk 0:00:40]}  Kd6 {[%clk 0:00:39]} 49. Bh3 {[%clk 0:00:40]}  Kd7 {[%clk 0:00:37]} 50. Bg2 {[%clk 0:00:39]}  Kd6 {[%clk 0:00:37]} 51. Bf1 {[%clk 0:00:40]}  Kd7 {[%clk 0:00:38]} 52. Be2 {[%clk 0:00:39]}  Kd6 {[%clk 0:00:38]} 53. b5 {[%clk 0:00:20]}  axb5 {[%clk 0:00:38]} 54. Rxa7 {[%clk 0:00:20]}  Rxa7 {[%clk 0:00:38]} 55. axb5 {[%clk 0:00:21]}  cxb5 {[%clk 0:00:34]} 56. Rxc8 {[%clk 0:00:21]}  Ra1 {[%clk 0:00:23]} 57. Kc2 {[%clk 0:00:10]}  Rh1 {[%clk 0:00:21]} 58. Kd2 {[%clk 0:00:07]}  Rxh4 {[%clk 0:00:21]} 59. Rg8 {[%clk 0:00:06]}  b4 {[%clk 0:00:21]} 60. Rxg6 {[%clk 0:00:06]}  b3 {[%clk 0:00:22]} 61. Kc3 {[%clk 0:00:03]}  Rh2 {[%clk 0:00:21]} 62. Bd1 {[%clk 0:00:02]}  b2 {[%clk 0:00:22]} 63. Bc2 {[%clk 0:00:03]}  Re2 {[%clk 0:00:18]} 64. f5 {[%clk 0:00:03]}  Rxe3+ {[%clk 0:00:17]} 65. Kxb2 {[%clk 0:00:04]}  Rf3 {[%clk 0:00:08]} 66. Rxe6+ {[%clk 0:00:05]}  Kd7 {[%clk 0:00:09]} 67. Rf6 {[%clk 0:00:04]}  e3 {[%clk 0:00:09]} 68. Bd3 {[%clk 0:00:04]}  h4 {[%clk 0:00:10]} 69. Rh6 {[%clk 0:00:03]}  e2 {[%clk 0:00:07]} 70. Bxe2 {[%clk 0:00:04]}  Rf2 {[%clk 0:00:06]} 71. Kc3 {[%clk 0:00:04]}  Rxe2 {[%clk 0:00:06]} 72. Rxh4 {[%clk 0:00:04]}  Rg2 {[%clk 0:00:06]} 73. Rh7+ {[%clk 0:00:04]}  Kd6 {[%clk 0:00:06]} 74. Rg7 {[%clk 0:00:05]}  Rg3+ {[%clk 0:00:05]} 75. Kd2 {[%clk 0:00:05]}  Rg2+ {[%clk 0:00:05]} 76. Ke3 {[%clk 0:00:05]}  Rxg5 {[%clk 0:00:05]} 77. Rxg5 {[%clk 0:00:05]} 1-0


[Site "https://www.chess.com"]

[Event "Titled Tuesday Blitz March 08 Early 2022"]
[White "Moskvin, Anatoly"]
[Black "Kim, Sergey"]
[WhiteFideId "24199990"]
[BlackFideId "13700570"]
[WhiteElo "2079"]
[BlackElo "2545"]
[Result "0-1"]
[Round "07"]
[TimeControl "180+1"]
[Date "2022.03.09"]
[WhiteClock "0:00:02"]
[BlackClock "0:00:44"]

1. f4 {[%clk 0:03:00]}  Nf6 {[%clk 0:02:59]} 2. Nf3 {[%clk 0:03:00]}  g6 {[%clk 0:02:59]} 3. b3 {[%clk 0:03:01]}  Bg7 {[%clk 0:03:00]} 4. Bb2 {[%clk 0:03:02]}  d6 {[%clk 0:03:00]} 5. e3 {[%clk 0:03:02]}  O-O {[%clk 0:03:00]} 6. Be2 {[%clk 0:03:02]}  e5 {[%clk 0:03:01]} 7. O-O {[%clk 0:02:55]}  e4 {[%clk 0:03:00]} 8. Ne1 {[%clk 0:02:50]}  Re8 {[%clk 0:03:00]} 9. g3 {[%clk 0:02:46]}  d5 {[%clk 0:02:59]} 10. Ng2 {[%clk 0:02:46]}  c5 {[%clk 0:02:58]} 11. d3 {[%clk 0:02:44]}  exd3 {[%clk 0:02:53]} 12. cxd3 {[%clk 0:02:45]}  Nc6 {[%clk 0:02:53]} 13. Nd2 {[%clk 0:02:30]}  Bh3 {[%clk 0:02:51]} 14. Rf3 {[%clk 0:01:47]}  Qd7 {[%clk 0:02:44]} 15. Nf1 {[%clk 0:01:45]}  b6 {[%clk 0:02:31]} 16. Rf2 {[%clk 0:01:20]}  a5 {[%clk 0:02:29]} 17. Bf3 {[%clk 0:01:07]}  Ng4 {[%clk 0:02:15]} 18. Bxg4 {[%clk 0:01:05]}  Bxg4 {[%clk 0:02:14]} 19. Qd2 {[%clk 0:00:57]}  d4 {[%clk 0:02:14]} 20. e4 {[%clk 0:00:57]}  a4 {[%clk 0:02:09]} 21. bxa4 {[%clk 0:00:52]}  Rxa4 {[%clk 0:02:07]} 22. a3 {[%clk 0:00:34]}  Na5 {[%clk 0:02:04]} 23. Qc2 {[%clk 0:00:32]}  Be6 {[%clk 0:02:03]} 24. Nd2 {[%clk 0:00:33]}  Rc8 {[%clk 0:01:53]} 25. f5 {[%clk 0:00:17]}  gxf5 {[%clk 0:01:53]} 26. exf5 {[%clk 0:00:18]}  Bd5 {[%clk 0:01:53]} 27. Nf4 {[%clk 0:00:18]}  Bb7 {[%clk 0:01:49]} 28. Nh5 {[%clk 0:00:15]}  c4 {[%clk 0:01:39]} 29. dxc4 {[%clk 0:00:12]}  Nxc4 {[%clk 0:01:37]} 30. Nxg7 {[%clk 0:00:02]}  Qd5 {[%clk 0:01:26]} 31. Qe4 {[%clk 0:00:01]}  Nxb2 {[%clk 0:01:20]} 32. Qxd5 {[%clk 0:00:01]}  Bxd5 {[%clk 0:01:19]} 33. Nh5 {[%clk 0:00:02]}  Kf8 {[%clk 0:01:10]} 34. Nf6 {[%clk 0:00:02]}  Bb7 {[%clk 0:01:07]} 35. Rb1 {[%clk 0:00:02]}  Nd3 {[%clk 0:01:02]} 36. Nd7+ {[%clk 0:00:03]}  Ke7 {[%clk 0:01:00]} 37. Nxb6 {[%clk 0:00:04]}  Nxf2 {[%clk 0:00:59]} 38. Nxc8+ {[%clk 0:00:04]}  Bxc8 {[%clk 0:00:58]} 39. Kxf2 {[%clk 0:00:05]}  Rxa3 {[%clk 0:00:58]} 40. Nc4 {[%clk 0:00:04]}  Rc3 {[%clk 0:00:53]} 41. Ne5 {[%clk 0:00:04]}  Kf6 {[%clk 0:00:53]} 42. Nf3 {[%clk 0:00:04]}  Rc2+ {[%clk 0:00:51]} 43. Ke1 {[%clk 0:00:03]}  d3 {[%clk 0:00:51]} 44. Rb6+ {[%clk 0:00:03]}  Ke7 {[%clk 0:00:46]} 45. f6+ {[%clk 0:00:03]}  Kd7 {[%clk 0:00:46]} 46. Ne5+ {[%clk 0:00:03]}  Kc7 {[%clk 0:00:46]} 47. Ra6 {[%clk 0:00:02]}  Bxa6 {[%clk 0:00:44]} 0-1


[Site "https://www.chess.com"]

[Event "Titled Tuesday Blitz March 08 Early 2022"]
[White "Muradov, Soltan"]
[Black "Musovic, Armin"]
[WhiteFideId "14002108"]
[BlackFideId "939935"]
[WhiteElo "1854"]
[BlackElo "2283"]
[Result "0-1"]
[Round "07"]
[TimeControl "180+1"]
[Date "2022.03.09"]
[WhiteClock "0:00:04"]
[BlackClock "0:00:54"]

1. d4 {[%clk 0:02:57]}  d5 {[%clk 0:03:00]} 2. Nf3 {[%clk 0:02:56]}  Nf6 {[%clk 0:02:59]} 3. Bf4 {[%clk 0:02:56]}  c5 {[%clk 0:03:00]} 4. e3 {[%clk 0:02:56]}  Nc6 {[%clk 0:03:00]} 5. c3 {[%clk 0:02:57]}  a6 {[%clk 0:03:00]} 6. Nbd2 {[%clk 0:02:54]}  Bg4 {[%clk 0:03:01]} 7. h3 {[%clk 0:02:53]}  Bh5 {[%clk 0:03:00]} 8. Be2 {[%clk 0:02:44]}  e6 {[%clk 0:03:01]} 9. O-O {[%clk 0:02:44]}  Bd6 {[%clk 0:03:01]} 10. Ne5 {[%clk 0:02:33]}  Bg6 {[%clk 0:02:59]} 11. Ndf3 {[%clk 0:02:13]}  O-O {[%clk 0:02:57]} 12. Bd3 {[%clk 0:02:10]}  Rc8 {[%clk 0:02:53]} 13. Bxg6 {[%clk 0:02:06]}  hxg6 {[%clk 0:02:54]} 14. Nxc6 {[%clk 0:02:02]}  Rxc6 {[%clk 0:02:52]} 15. Ne5 {[%clk 0:02:02]}  Bxe5 {[%clk 0:02:50]} 16. Bxe5 {[%clk 0:02:02]}  Nd7 {[%clk 0:02:41]} 17. Bg3 {[%clk 0:01:59]}  Re8 {[%clk 0:02:36]} 18. Qb3 {[%clk 0:01:54]}  Rb6 {[%clk 0:02:32]} 19. Qc2 {[%clk 0:01:52]}  Qe7 {[%clk 0:02:31]} 20. Rac1 {[%clk 0:01:35]}  Rc8 {[%clk 0:02:27]} 21. Rfd1 {[%clk 0:01:34]}  cxd4 {[%clk 0:02:22]} 22. exd4 {[%clk 0:01:33]}  Qg5 {[%clk 0:02:14]} 23. Rb1 {[%clk 0:01:27]}  Qf5 {[%clk 0:02:06]} 24. Qa4 {[%clk 0:01:27]}  Nf6 {[%clk 0:02:04]} 25. f3 {[%clk 0:01:24]}  Nh5 {[%clk 0:02:03]} 26. Qd7 {[%clk 0:01:10]}  Rcc6 {[%clk 0:01:55]} 27. Bc7 {[%clk 0:00:57]}  Rb5 {[%clk 0:01:44]} 28. g4 {[%clk 0:00:57]}  Qxf3 {[%clk 0:01:23]} 29. gxh5 {[%clk 0:00:56]}  Qe3+ {[%clk 0:01:12]} 30. Kg2 {[%clk 0:00:32]}  e5 {[%clk 0:01:05]} 31. Bxe5 {[%clk 0:00:15]}  gxh5 {[%clk 0:01:04]} 32. Qd8+ {[%clk 0:00:10]}  Kh7 {[%clk 0:01:03]} 33. Qh4 {[%clk 0:00:11]}  Rg6+ {[%clk 0:00:56]} 34. Kf1 {[%clk 0:00:04]}  Rg1# {[%clk 0:00:54]} 0-1


[Site "https://www.chess.com"]